bitfinex/quotes_SOLUSD_20250514
["timestamp","ask_amount","ask_price","bid_price","bid_amount"]
[1747229821253,18.79181043,180.51,180.48,26.49161848]
[1747229821254,0.28432314,180.51,180.48,26.49161848]
[1747229821553,0.28432314,180.53,180.5,26.49161848]
[1747229821754,19.38843341,180.52,180.5,26.49161848]
[1747229821990,19.38843341,180.52,180.49,26.49161848]
[1747229822158,19.38843341,180.52,180.43,6.5264]
[1747229822368,19.38843341,180.52,180.41,49.26]
[1747229822369,0.28432314,180.48,180.41,23.2]
[1747229822687,0.28432314,180.48,180.41,49.2]
[1747229822859,0.28432314,180.48,180.45,26.49161848]
[1747229823189,138.0,180.51,180.47,26.49161848]
[1747229823386,5.5395524,180.52,180.5,26.49161848]
[1747229823599,5.5395524,180.52,180.51,26.49161848]
[1747229823775,13.84693281,180.55,180.51,26.49161848]
[1747229824291,5.53801849,180.57,180.48,28.70076591]
[1747229824459,19.38306473,180.57,180.55,26.49161848]
[1747229824791,19.38306473,180.57,180.48,23.16]
[1747229824981,19.38306473,180.57,180.55,26.49161848]
[1747229825470,5.53801849,180.57,180.56,26.49161848]
[1747229825857,5.53740517,180.59,180.56,26.49161848]
[1747229826092,5.53740517,180.59,180.58,26.49161848]
[1747229826878,5.53740517,180.59,180.54,26.49161848]
[1747229827073,5.53740517,180.59,180.58,26.49161848]
[1747229828000,19.3791153,180.61,180.58,26.49161848]
[1747229828197,19.3791153,180.61,180.53,26.0]
[1747229828399,5.53679198,180.61,180.59,26.49161848]
[1747229828693,5.53679198,180.61,180.6,26.49161848]
[1747229829485,5.53679198,180.61,180.56,1.621]
[1747229829803,26.77594162,180.59,180.53,23.02]
[1747229830102,26.77594162,180.57,180.5,24.641]
[1747229830302,26.77594162,180.57,180.52,26.49161848]
[1747229830801,26.77594162,180.54,180.5,1.621]
[1747229831125,18.79181043,180.5,180.37,30.7798]
[1747229831406,26.49161848,180.44,180.39,26.49161848]
[1747229831618,26.49161848,180.44,180.37,28.06091848]
[1747229831619,26.49161848,180.42,180.37,28.06091848]
[1747229832138,5.54292999,180.41,180.39,26.49161848]
[1747229832430,5.54292999,180.41,180.37,1.5693]
[1747229832576,5.54292999,180.41,180.4,26.49161848]
[1747229832775,5.5422037,180.44,180.4,26.49161848]
[1747229833076,5.5422037,180.44,180.41,26.49161848]
[1747229833396,40.25569777,180.43,180.38,40.25569777]
[1747229833579,19.39722475,180.44,180.39,40.25569777]
[1747229833785,19.39722475,180.44,180.37,1.5693]
[1747229833786,19.39722475,180.44,180.4,40.25569777]
[1747229833983,5.5422037,180.44,180.42,40.25569777]
[1747229834580,5.5422037,180.44,180.37,1.5693]
[1747229834780,5.5422037,180.44,180.41,40.25569777]
[1747229835088,5.5422037,180.44,180.42,40.25569777]
[1747229835395,5.5422037,180.44,180.37,1.5693]
[1747229835573,5.5422037,180.44,180.3,1.5094]
[1747229835574,0.14216157,180.39,180.3,1.5094]
[1747229835779,40.25569777,180.39,180.34,40.25569777]
[1747229836004,40.25569777,180.39,180.3,1.5094]
[1747229836005,5.54354454,180.39,180.38,40.25569777]
[1747229836455,5.54354454,180.39,180.3,1.5094]
[1747229836605,5.54354454,180.39,180.37,40.25569777]
[1747229837234,5.54354454,180.39,180.38,40.25569777]
[1747229837565,5.54292999,180.41,180.38,40.25569777]
[1747229837728,5.54292999,180.41,180.32,26.0]
[1747229837729,5.54292999,180.41,180.4,40.25569777]
[1747229837909,19.39702947,180.44,180.4,40.25569777]
[1747229838108,19.53919104,180.44,180.4,40.25569777]
[1747229838313,40.25569777,180.41,180.35,22.94]
[1747229838616,40.25569777,180.41,180.36,40.25569777]
[1747229839212,0.28432314,180.38,180.35,22.94]
[1747229839412,40.54002091,180.38,180.3,27.5094]
[1747229839622,0.28432314,180.38,180.34,40.25569777]
[1747229840144,5.54415922,180.37,180.34,40.25569777]
[1747229841324,5.54415922,180.37,180.3,1.5094]
[1747229841325,0.28432314,180.36,180.32,40.25569777]
[1747229841531,5.54415922,180.37,180.34,40.25569777]
[1747229841731,5.54415922,180.37,180.35,40.25569777]
[1747229842423,5.54319745,180.41,180.36,40.25569777]
[1747229842621,5.54319745,180.41,180.32,26.0]
[1747229842845,40.25569777,180.38,180.3,1.5094]
[1747229843053,59.18966977,180.36,180.3,1.5094]
[1747229843272,40.39785934,180.32,180.24,1.6134]
[1747229843413,40.25569777,180.29,180.24,1.6134]
[1747229843613,40.25569777,180.29,180.18,63.29569777]
[1747229843614,26.0,180.28,180.18,86.07569777]
[1747229843845,0.14216157,180.3,180.21,40.25569777]
[1747229844064,5.54754243,180.26,180.2,0.66]
[1747229844223,143.54754243,180.26,180.22,40.25569777]
[1747229844567,157.41639852,180.26,180.21,40.25569777]
[1747229844868,197.67209629,180.26,180.21,40.25569777]
[1747229845161,40.25569777,180.23,180.2,0.66]
[1747229845337,40.25569777,180.23,180.17,41.86909777]
[1747229845548,0.14216157,180.23,180.2,40.25569777]
[1747229845919,0.14216157,180.2,180.17,1.6134]
[1747229846125,5.54969754,180.19,180.16,40.25569777]
[1747229846364,19.42394139,180.19,180.15,40.25569777]
[1747229846662,40.25569777,180.17,180.11,1.5907]
[1747229846959,40.54002091,180.16,180.11,1.5907]
[1747229847122,0.28432314,180.17,180.14,40.25569777]
[1747229847322,59.18966977,180.17,180.12,0.66]
[1747229847558,0.28432314,180.16,180.12,0.66]
[1747229847759,0.28432314,180.16,180.12,40.91569777]
[1747229847962,0.28432314,180.16,180.08,40.25569777]
[1747229847963,40.54002091,180.13,180.08,40.25569777]
[1747229848123,5.55185431,180.12,180.07,40.25569777]
[1747229848329,5.55185431,180.12,180.08,0.66]
[1747229848561,40.54002091,180.11,180.08,0.66]
[1747229848742,0.28432314,180.11,180.08,0.66]
[1747229848923,5.55185431,180.12,180.09,40.25569777]
[1747229849432,40.25569777,180.2,180.11,40.25569777]
[1747229849655,0.14216157,180.18,180.09,63.27569777]
[1747229849872,40.25569777,180.14,180.04,1.5758]
[1747229850164,45.8075032,180.13,180.08,40.25569777]
[1747229850354,40.25569777,180.11,180.06,40.25569777]
[1747229850560,0.28432314,180.12,180.05,40.91569777]
[1747229850561,40.25569777,180.1,180.05,40.91569777]
[1747229850868,40.25569777,180.07,180.02,40.25569777]
[1747229851047,40.25569777,180.07,180.0,23.2]
[1747229851243,40.25569777,180.07,180.02,40.25569777]
[1747229851429,0.28432314,180.08,180.01,0.66]
[1747229851763,0.28432314,180.08,180.02,40.25569777]
[1747229851973,18.64964886,180.11,180.06,40.25569777]
[1747229852259,0.14216157,180.12,180.1,40.25569777]
[1747229852468,28.61148092,180.14,180.1,40.25569777]
[1747229852623,40.25569777,180.16,180.11,40.25569777]
[1747229852825,40.25569777,180.19,180.14,40.25569777]
[1747229853253,63.31569777,180.2,180.14,40.25569777]
[1747229853457,0.28432314,180.19,180.14,40.25569777]
[1747229853641,23.06,180.2,180.16,40.25569777]
[1747229854227,23.22,180.25,180.1,27.64]
[1747229854228,32.33228251,180.27,180.19,40.25569777]
[1747229854434,40.25569777,180.28,180.23,40.25569777]
[1747229854735,40.25569777,180.29,180.24,40.25569777]
[1747229855039,66.25569777,180.28,180.23,40.25569777]
[1747229855253,40.25569777,180.26,180.19,23.2]
[1747229855447,40.25569777,180.24,180.18,40.25569777]
[1747229855765,13.86600003,180.3,180.21,40.25569777]
[1747229855973,5.5460041,180.31,180.27,40.25569777]
[1747229856132,26.0,180.28,180.27,40.25569777]
[1747229856323,26.0,180.28,180.25,40.25569777]
[1747229856531,26.0,180.26,180.23,40.25569777]
[1747229856739,26.0,180.26,180.18,40.25569777]
[1747229856955,26.0,180.26,180.23,40.25569777]
[1747229857269,26.0,180.25,180.21,40.25569777]
[1747229857426,0.28432314,180.25,180.2,40.25569777]
[1747229857628,26.0,180.27,180.23,40.25569777]
[1747229857867,26.0,180.28,180.26,40.25569777]
[1747229858073,26.0,180.28,180.25,40.25569777]
[1747229858240,5.5472347,180.27,180.23,40.25569777]
[1747229858429,40.25569777,180.24,180.19,40.25569777]
[1747229858632,0.14216157,180.23,180.12,23.06]
[1747229858857,18.64964886,180.26,180.14,18.64964886]
[1747229858858,0.28432314,180.26,180.14,18.64964886]
[1747229859171,0.14216157,180.2,180.12,23.06]
[1747229859367,40.25569777,180.18,180.1,31.0194]
[1747229859559,0.14216157,180.19,180.1,31.0194]
[1747229859766,40.39785934,180.19,180.14,40.25569777]
[1747229859976,40.39785934,180.17,180.11,23.22]
[1747229860287,45.80662755,180.15,180.1,41.89569777]
[1747229860461,0.28432314,180.13,180.08,40.25569777]
[1747229860656,138.0,180.12,180.09,40.25569777]
[1747229861178,138.0,180.12,180.07,23.22]
[1747229861480,5.55092978,180.15,180.11,40.25569777]
[1747229861686,5.55092978,180.15,180.14,40.25569777]
[1747229861886,138.0,180.16,180.09,40.25569777]
[1747229862089,138.0,180.16,180.15,40.25569777]
[1747229862256,143.55062166,180.16,180.09,40.25569777]
[1747229862452,143.55062166,180.16,180.15,40.25569777]
[1747229862453,138.0,180.16,180.15,40.25569777]
[1747229863474,143.55062166,180.16,180.15,40.25569777]
[1747229863779,143.55062166,180.16,180.12,40.25569777]
[1747229863981,0.28432314,180.14,180.07,23.18]
[1747229864190,0.28432314,180.14,180.08,40.25569777]
[1747229864363,157.43041136,180.13,180.04,29.3694]
[1747229864557,66.25569777,180.11,180.0,40.25569777]
[1747229864784,40.25569777,180.07,179.98,23.16]
[1747229864986,138.28432314,180.06,180.0,0.66]
[1747229865167,138.0,180.06,180.03,40.25569777]
[1747229865681,138.0,180.06,180.0,0.66]
[1747229865982,138.0,180.06,180.04,40.25569777]
[1747229866185,138.0,180.06,180.05,40.25569777]
[1747229866606,138.0,180.11,180.05,63.39569777]
[1747229866804,138.0,180.11,180.1,40.25569777]
[1747229867176,23.18,180.2,180.1,40.25569777]
[1747229867177,138.0,180.17,180.1,40.25569777]
[1747229867401,143.55039939,180.17,180.15,40.25569777]
[1747229867715,151.87071711,180.24,180.16,40.25569777]
[1747229867876,5.54846584,180.23,180.19,40.25569777]
[1747229868200,31.54846584,180.23,180.12,23.12]
[1747229868396,85.67532823,180.23,180.18,40.25569777]
[1747229868571,40.25569777,180.21,180.12,23.12]
[1747229868780,0.28432314,180.19,180.14,40.25569777]
[1747229869179,40.54002091,180.19,180.14,40.25569777]
[1747229870010,40.25569777,180.18,180.13,40.25569777]
[1747229870196,40.54002091,180.19,180.14,40.25569777]
[1747229870414,5.55000555,180.18,180.1,23.12]
[1747229870585,5.55000555,180.18,180.15,40.25569777]
[1747229870786,40.25569777,180.16,180.09,1.6602]
[1747229871007,26.28432314,180.17,180.1,40.25569777]
[1747229871008,40.54002091,180.15,180.1,40.25569777]
[1747229871232,0.28432314,180.15,180.11,40.25569777]
[1747229871528,0.28432314,180.15,180.12,40.25569777]
[1747229872096,0.14216157,180.13,180.09,40.25569777]
[1747229872496,5.55185431,180.12,180.09,40.25569777]
[1747229872988,19.4314901,180.12,180.08,40.25569777]
[1747229873190,138.0,180.11,180.04,23.06]
[1747229873408,138.0,180.1,180.06,40.25569777]
[1747229873580,178.39785934,180.09,180.04,40.25569777]
[1747229873913,178.39785934,180.09,180.03,40.25569777]
[1747229873914,40.39785934,180.08,180.03,40.25569777]
[1747229874118,40.25569777,180.05,180.0,40.91569777]
[1747229874283,0.14216157,180.05,180.01,40.25569777]
[1747229874493,5.55432126,180.04,180.0,0.66]
[1747229874687,5.55432126,180.04,180.01,40.25569777]
[1747229874882,5.55432126,180.04,180.02,40.25569777]
[1747229875085,5.5533959,180.07,180.03,40.25569777]
[1747229875287,5.5533959,180.07,180.06,40.25569777]
[1747229875889,5.55277916,180.09,180.06,40.25569777]
[1747229876413,45.80847693,180.09,180.0,23.7]
[1747229876617,59.69042484,180.09,180.04,40.25569777]
[1747229877571,13.87687982,180.16,180.05,40.25569777]
[1747229877691,54.13257759,180.16,180.11,40.25569777]
[1747229877886,54.13257759,180.16,180.01,38.09301311]
[1747229877887,5.55031359,180.17,180.14,40.25569777]
[1747229878091,31.55031359,180.17,180.12,40.25569777]
[1747229878399,19.42825423,180.15,180.1,40.25569777]
[1747229878590,40.54002091,180.14,180.04,26.0]
[1747229878789,40.54002091,180.14,180.09,40.25569777]
[1747229879793,19.42825423,180.15,180.11,40.25569777]
[1747229880189,40.54002091,180.14,180.09,40.25569777]
[1747229880428,19.4358063,180.08,180.02,40.25569777]
[1747229880732,40.25569777,180.04,180.0,0.66]
[1747229880938,138.0,180.03,180.01,40.25569777]
[1747229881141,138.0,180.03,180.02,2.62]
[1747229881330,138.28432314,180.03,180.02,2.62]
[1747229881492,138.0,180.03,180.02,2.62]
[1747229881728,138.0,180.03,180.0,40.25569777]
[1747229882510,5.55493834,180.02,179.99,40.25569777]
[1747229882708,26.0,179.99,179.91,1.6035]
[1747229883021,66.25569777,179.95,179.93,2.62]
[1747229883414,40.54002091,179.94,179.93,2.62]
[1747229883602,0.28432314,179.94,179.93,2.62]
[1747229883809,40.54002091,179.94,179.93,2.62]
[1747229884210,0.28432314,179.94,179.93,2.62]
[1747229884611,46.09742893,179.94,179.93,2.62]
[1747229884825,64.74707779,179.94,179.93,2.62]
[1747229885058,18.64964886,179.9,179.83,40.25569777]
[1747229885214,178.54002091,179.89,179.84,40.25569777]
[1747229885734,138.28432314,179.89,179.85,40.25569777]
[1747229885938,178.25569777,179.89,179.8,22.78]
[1747229886150,40.39785934,179.86,179.81,40.25569777]
[1747229886326,40.25569777,179.84,179.79,40.25569777]
[1747229886525,138.0,179.83,179.78,7.18015225]
[1747229886743,138.0,179.83,179.82,40.25569777]
[1747229887420,138.0,179.83,179.8,40.25569777]
[1747229887645,138.0,179.83,179.81,40.25569777]
[1747229887947,138.0,179.83,179.82,40.25569777]
[1747229888118,143.56080742,179.83,179.78,1.6178]
[1747229888457,143.56080742,179.83,179.81,40.25569777]
[1747229888618,138.0,179.83,179.82,40.25569777]
[1747229888832,0.14216157,179.89,179.82,40.25569777]
[1747229889036,138.0,179.93,179.82,40.25569777]
[1747229889037,5.55833472,179.91,179.88,40.25569777]
[1747229889237,5.55833472,179.91,179.84,22.68]
[1747229889453,5.55833472,179.91,179.88,40.25569777]
[1747229890147,31.55833472,179.91,179.87,40.25569777]
[1747229890347,0.14216157,179.87,179.78,1.6178]
[1747229890659,5.56080742,179.83,179.79,40.25569777]
[1747229890970,151.90039719,179.86,179.82,40.25569777]
[1747229890971,143.55991251,179.86,179.82,40.25569777]
[1747229891277,197.71531004,179.86,179.78,24.2978]
[1747229891477,178.54002091,179.85,179.8,40.25569777]
[1747229891636,138.0,179.85,179.82,40.25569777]
[1747229891839,138.0,179.85,179.8,40.25569777]
[1747229892037,66.25569777,179.81,179.72,23.0]
[1747229892265,40.25569777,179.79,179.72,23.0]
[1747229892580,40.25569777,179.79,179.74,40.25569777]
[1747229892763,40.25569777,179.77,179.71,1.5065]
[1747229893065,66.25569777,179.72,179.65,1.6432]
[1747229893361,40.25569777,179.68,179.58,23.16]
[1747229893736,26.0,179.68,179.58,23.2]
[1747229893941,40.25569777,179.65,179.6,40.25569777]
[1747229894163,40.25569777,179.65,179.59,40.25569777]
[1747229894338,40.25569777,179.63,179.57,1.6432]
[1747229894546,40.25569777,179.61,179.56,40.25569777]
[1747229894749,5.56792873,179.6,179.56,40.25569777]
[1747229894944,5.56792873,179.6,179.51,29.6837]
[1747229895144,5.56792873,179.6,179.55,40.25569777]
[1747229895145,45.8236265,179.6,179.55,40.25569777]
[1747229895369,40.25569777,179.59,179.51,29.6837]
[1747229895540,59.74344832,179.6,179.5,1.5781]
[1747229895866,138.0,179.59,179.5,1.5781]
[1747229896074,138.0,179.59,179.44,6.474]
[1747229896075,40.25569777,179.56,179.44,6.474]
[1747229896403,40.25569777,179.52,179.43,10.15580885]
[1747229896600,164.0,179.55,179.46,40.25569777]
[1747229896780,5.57103064,179.5,179.46,40.25569777]
[1747229896989,143.57103064,179.5,179.46,40.25569777]
[1747229897185,143.57103064,179.5,179.43,10.15580885]
[1747229897381,143.57103064,179.5,179.49,40.25569777]
[1747229897382,138.0,179.5,179.49,40.25569777]
[1747229897699,26.0,179.56,179.49,40.25569777]
[1747229897903,66.25569777,179.56,179.5,40.25569777]
[1747229898105,26.0,179.5,179.43,10.15580885]
[1747229898287,26.0,179.44,179.43,8.60640885]
[1747229898482,40.25569777,179.44,179.43,8.60640885]
[1747229898898,64.76256321,179.44,179.43,8.60640885]
[1747229899099,31.57289344,179.44,179.39,40.25569777]
[1747229899404,40.25569777,179.43,179.36,10.71969697]
[1747229899611,26.0,179.41,179.36,10.71969697]
[1747229899785,40.25569777,179.37,179.36,10.71969697]
[1747229899986,40.54002091,179.37,179.36,10.71969697]
[1747229900199,40.25569777,179.37,179.36,10.71969697]
[1747229900723,26.0,179.41,179.36,10.71969697]
[1747229900929,26.0,179.41,179.37,40.25569777]
[1747229901227,40.25569777,179.39,179.36,10.71969697]
[1747229901724,0.28432314,179.4,179.36,10.71969697]
[1747229901939,40.25569777,179.4,179.36,10.71969697]
[1747229902138,31.57343737,179.43,179.38,40.25569777]
[1747229902431,40.25569777,179.44,179.39,40.25569777]
[1747229902592,26.0,179.44,179.39,40.25569777]
[1747229902794,5.5722086,179.47,179.42,40.25569777]
[1747229903025,5.5722086,179.47,179.43,40.25569777]
[1747229903327,40.25569777,179.49,179.44,40.25569777]
[1747229903527,40.25569777,179.49,179.38,18.64964886]
[1747229903697,40.25569777,179.49,179.4,40.25569777]
[1747229903698,40.25569777,179.45,179.4,40.25569777]
[1747229903994,40.25569777,179.47,179.41,40.25569777]
[1747229904189,40.25569777,179.48,179.43,40.25569777]
[1747229904389,40.25569777,179.49,179.44,40.25569777]
[1747229904590,40.25569777,179.48,179.43,40.25569777]
[1747229904825,26.0,179.49,179.39,3.26]
[1747229904826,45.82765965,179.47,179.39,3.26]
[1747229905125,66.25569777,179.44,179.39,3.26]
[1747229905325,26.0,179.44,179.4,40.25569777]
[1747229905630,66.25569777,179.44,179.39,43.51569777]
[1747229905843,40.25569777,179.45,179.39,43.51569777]
[1747229905996,5.57103064,179.5,179.44,40.25569777]
[1747229906429,40.25569777,179.49,179.44,40.25569777]
[1747229906602,41.62964886,179.53,179.39,3.26]
[1747229906603,45.82610775,179.52,179.47,40.25569777]
[1747229906936,5.57040998,179.52,179.49,40.25569777]
[1747229907091,5.56885894,179.57,179.5,40.25569777]
[1747229907297,5.56885894,179.57,179.54,40.25569777]
[1747229907524,40.25569777,179.61,179.56,40.25569777]
[1747229907748,26.0,179.6,179.56,40.25569777]
[1747229907947,5.56699883,179.63,179.59,40.25569777]
[1747229908152,5.56699883,179.63,179.57,40.25569777]
[1747229908329,5.56699883,179.63,179.56,40.25569777]
[1747229908537,40.25569777,179.62,179.57,40.25569777]
[1747229908919,40.25569777,179.59,179.5,29.25]
[1747229909120,40.25569777,179.59,179.5,53.09]
[1747229909358,59.74236331,179.61,179.56,40.25569777]
[1747229909531,19.48666554,179.61,179.56,40.25569777]
[1747229909732,19.48666554,179.61,179.57,40.25569777]
[1747229909959,19.48666554,179.61,179.56,40.25569777]
[1747229910161,19.48666554,179.61,179.58,40.25569777]
[1747229910325,40.25569777,179.6,179.55,40.25569777]
[1747229910530,40.25569777,179.59,179.54,40.25569777]
[1747229911054,19.48992092,179.58,179.5,53.01]
[1747229911564,19.48992092,179.58,179.54,40.25569777]
[1747229911767,5.56854883,179.58,179.56,40.25569777]
[1747229911920,5.56854883,179.58,179.5,53.01]
[1747229912262,5.56854883,179.58,179.57,40.25569777]
[1747229912556,5.56761872,179.61,179.57,40.25569777]
[1747229912760,5.56761872,179.61,179.52,18.64964886]
[1747229913057,40.25569777,179.6,179.55,40.25569777]
[1747229913355,19.48666554,179.61,179.56,40.25569777]
[1747229913555,40.25569777,179.6,179.55,40.25569777]
[1747229913748,19.48666554,179.61,179.57,40.25569777]
[1747229914061,40.25569777,179.6,179.55,40.25569777]
[1747229914357,40.25569777,179.6,179.51,23.7]
[1747229914535,40.25569777,179.6,179.55,40.25569777]
[1747229914952,19.48666554,179.61,179.57,40.25569777]
[1747229915123,19.48666554,179.61,179.51,23.7]
[1747229915124,13.91904682,179.61,179.58,40.25569777]
[1747229915328,13.91904682,179.61,179.57,40.25569777]
[1747229915527,39.91904682,179.61,179.5,3.25]
[1747229915748,39.91904682,179.61,179.55,40.25569777]
[1747229915749,40.25569777,179.6,179.55,40.25569777]
[1747229916268,40.25569777,179.59,179.5,26.91]
[1747229916433,40.20336996,179.61,179.55,40.25569777]
[1747229916434,40.25569777,179.6,179.55,40.25569777]
[1747229917048,40.20336996,179.61,179.55,40.25569777]
[1747229917250,40.20336996,179.61,179.54,40.25569777]
[1747229917251,59.74453344,179.59,179.54,40.25569777]
[1747229917764,40.25569777,179.58,179.53,40.25569777]
[1747229918134,19.48883567,179.59,179.55,40.25569777]
[1747229918329,5.56823876,179.59,179.55,40.25569777]
[1747229918533,5.56823876,179.59,179.5,26.91]
[1747229918534,5.56823876,179.59,179.51,18.64964886]
[1747229918863,85.74453344,179.59,179.5,26.91]
[1747229919048,85.74453344,179.59,179.54,40.25569777]
[1747229919269,40.25569777,179.55,179.5,3.25]
[1747229919471,66.25569777,179.56,179.51,40.25569777]
[1747229919953,40.25569777,179.55,179.5,43.50569777]
[1747229920332,66.25569777,179.56,179.51,40.25569777]
[1747229920969,26.0,179.56,179.52,40.25569777]
[1747229921172,26.0,179.56,179.5,3.25]
[1747229921337,19.49317738,179.55,179.51,40.25569777]
[1747229921531,19.49317738,179.55,179.5,3.25]
[1747229921733,40.25569777,179.51,179.5,3.25]
[1747229921938,40.54002091,179.51,179.5,3.25]
[1747229922145,59.18966977,179.51,179.5,3.25]
[1747229922353,40.25569777,179.51,179.5,3.25]
[1747229922541,58.90534663,179.51,179.5,3.25]
[1747229922866,66.25569777,179.51,179.5,3.25]
[1747229923232,71.82641806,179.51,179.5,3.25]
[1747229923431,64.76039006,179.51,179.5,3.25]
[1747229923668,67.65721966,179.51,179.5,3.25]
[1747229924460,64.76039006,179.51,179.5,3.25]
[1747229925071,0.28432314,179.46,179.36,10.71969697]
[1747229925224,45.82983377,179.4,179.36,10.71969697]
[1747229925653,5.574136,179.4,179.37,40.25569777]
[1747229925837,40.25569777,179.45,179.39,40.25569777]
[1747229926040,40.25569777,179.45,179.4,40.25569777]
[1747229926465,26.0,179.47,179.44,40.25569777]
[1747229926645,40.25569777,179.52,179.46,40.25569777]
[1747229926836,5.5700997,179.53,179.41,18.64964886]
[1747229927170,23.84,179.56,179.41,18.64964886]
[1747229927171,5.56854883,179.58,179.52,40.25569777]
[1747229927482,5.56792873,179.6,179.5,5.57091309]
[1747229927784,5.56763941,179.61,179.57,40.25569777]
[1747229927930,5.56606924,179.66,179.6,40.25569777]
[1747229928136,5.56606924,179.66,179.62,40.25569777]
[1747229928670,5.56606924,179.66,179.56,23.5]
[1747229928963,40.25569777,179.63,179.56,23.5]
[1747229929174,40.25569777,179.62,179.57,40.25569777]
[1747229929335,5.56761872,179.61,179.57,40.25569777]
[1747229929536,19.48666554,179.61,179.54,40.25569777]
[1747229929736,30.0,179.59,179.53,23.46]
[1747229929958,30.0,179.59,179.56,40.25569777]
[1747229930240,30.0,179.59,179.53,23.46]
[1747229930445,70.25569777,179.59,179.54,40.25569777]
[1747229930654,30.0,179.59,179.55,40.25569777]
[1747229931066,30.0,179.59,179.58,40.25569777]
[1747229931672,30.0,179.59,179.52,18.64964886]
[1747229931857,35.56835395,179.59,179.56,40.25569777]
[1747229932064,35.56835395,179.59,179.55,40.25569777]
[1747229932364,35.56835395,179.59,179.56,40.25569777]
[1747229932578,35.56835395,179.59,179.57,40.25569777]
[1747229933036,49.48895086,179.59,179.5,26.0]
[1747229933238,89.74464863,179.59,179.54,40.25569777]
[1747229933448,59.74464863,179.59,179.54,40.25569777]
[1747229934053,40.25569777,179.58,179.53,40.25569777]
[1747229934440,5.56835395,179.59,179.56,40.25569777]
[1747229934961,5.56730876,179.62,179.58,40.25569777]
[1747229935258,5.56513996,179.69,179.61,40.25569777]
[1747229935437,5.56634759,179.66,179.65,40.25569777]
[1747229935876,5.56513996,179.69,179.65,40.25569777]
[1747229936341,19.47798986,179.69,179.6,23.66]
[1747229936545,59.73368763,179.69,179.63,40.25569777]
[1747229937168,19.47798986,179.69,179.65,40.25569777]
[1747229937375,71.82021838,179.71,179.66,40.25569777]
[1747229937575,85.73151992,179.71,179.66,40.25569777]
[1747229937779,45.47582215,179.71,179.67,40.25569777]
[1747229938348,5.56452061,179.71,179.67,40.25569777]
[1747229938593,5.56452061,179.71,179.61,6.367]
[1747229938743,5.56452061,179.71,179.66,40.25569777]
[1747229938744,59.73151992,179.71,179.66,40.25569777]
[1747229938948,19.47582215,179.71,179.66,40.25569777]
[1747229939153,19.47582215,179.71,179.67,40.25569777]
[1747229939378,5.56544968,179.68,179.64,40.25569777]
[1747229939685,5.56544968,179.68,179.67,40.25569777]
[1747229940263,19.4790739,179.68,179.61,6.367]
[1747229940456,138.0,179.67,179.64,40.25569777]
[1747229940650,138.0,179.67,179.66,40.25569777]
[1747229941069,138.0,179.67,179.65,40.25569777]
[1747229941462,5.56606924,179.66,179.65,40.25569777]
[1747229941664,143.56581627,179.67,179.65,40.25569777]
[1747229941956,143.56581627,179.67,179.6,55.2278438]
[1747229941957,138.0,179.67,179.66,40.25569777]
[1747229942160,13.90854674,179.75,179.66,40.25569777]
[1747229942360,13.90854674,179.75,179.72,40.25569777]
[1747229942577,13.90854674,179.75,179.67,23.62]
[1747229942578,138.0,179.74,179.71,40.25569777]
[1747229942758,19.47182907,179.75,179.7,40.25569777]
[1747229942759,138.0,179.73,179.7,40.25569777]
[1747229943163,138.0,179.72,179.7,40.25569777]
[1747229943381,40.25569777,179.71,179.64,23.58]
[1747229943688,5.56483027,179.7,179.66,40.25569777]
[1747229943883,5.56483027,179.7,179.67,40.25569777]
[1747229944201,138.0,179.71,179.69,40.25569777]
[1747229944380,138.0,179.71,179.7,40.25569777]
[1747229944769,138.0,179.75,179.7,40.25569777]
[1747229945077,138.0,179.75,179.74,40.25569777]
[1747229946210,143.56328233,179.75,179.74,40.25569777]
[1747229946380,138.0,179.74,179.68,6.4921]
[1747229946577,138.0,179.74,179.69,40.25569777]
[1747229947097,138.0,179.74,179.73,40.25569777]
[1747229947286,5.56296314,179.77,179.73,40.25569777]
[1747229947500,5.56239236,179.78,179.76,40.25569777]
[1747229947800,5.56239236,179.78,179.74,23.5]
[1747229947801,5.56239236,179.78,179.77,40.25569777]
[1747229948010,5.56239236,179.78,179.74,23.5]
[1747229948317,5.56239236,179.78,179.76,40.25569777]
[1747229948609,143.56205125,179.79,179.77,40.25569777]
[1747229948814,143.56205125,179.79,179.78,40.25569777]
[1747229949315,138.0,179.79,179.78,40.25569777]
[1747229950414,138.0,179.79,179.78,41.76069777]
[1747229950588,143.56085475,179.83,179.78,41.76069777]
[1747229950907,143.56085475,179.83,179.82,40.25569777]
[1747229951280,138.0,179.83,179.82,40.25569777]
[1747229951696,143.56080742,179.83,179.81,63.65569777]